[Event "*** Titled Tuesday Blitz"]
[Site "Chess.com"]
[Date "2019.12.03"]
[Round "1"]
[White "Lovkov_Roman"]
[Black "marianokar"]
[Result "1-0"]
[WhiteElo "2774"]
[BlackElo "2408"]
[TimeControl "180+2"]
[EndTime "13:09:28 PST"]
[Termination "Lovkov_Roman won by resignation"]

1. e4 {[%clk 0:02:53.6]} 1... c5 {[%clk 0:02:59.4]} 2. c3 {[%clk 0:02:54.5]}
2... g6 {[%clk 0:02:58.4]} 3. h4 {[%clk 0:02:50.6]} 3... h5 {[%clk 0:02:53.1]}
4. Nf3 {[%clk 0:02:51]} 4... Nf6 {[%clk 0:02:52.8]} 5. e5 {[%clk 0:02:51.8]}
5... Nd5 {[%clk 0:02:54.2]} 6. d4 {[%clk 0:02:44.7]} 6... cxd4 {[%clk
0:02:53.9]} 7. Qxd4 {[%clk 0:02:42.1]} 7... e6 {[%clk 0:02:28.1]} 8. Bg5 {[%clk
0:02:32]} 8... Be7 {[%clk 0:02:21.9]} 9. Nbd2 {[%clk 0:02:22.6]} 9... Nc6 {[%clk
0:02:22.6]} 10. Qe4 {[%clk 0:02:23.3]} 10... d6 {[%clk 0:02:21.8]} 11. Bxe7
{[%clk 0:02:13]} 11... Qxe7 {[%clk 0:02:05.5]} 12. exd6 {[%clk 0:02:13.8]} 12...
Qxd6 {[%clk 0:02:05.9]} 13. Nc4 {[%clk 0:02:14]} 13... Qf4 {[%clk 0:01:57.8]}
14. Qxf4 {[%clk 0:02:08.4]} 14... Nxf4 {[%clk 0:01:58.5]} 15. g3 {[%clk
0:02:08.6]} 15... Nd5 {[%clk 0:01:57.8]} 16. Bg2 {[%clk 0:02:09.5]} 16... Ke7
{[%clk 0:01:53.1]} 17. O-O-O {[%clk 0:02:06.7]} 17... b5 {[%clk 0:01:45.6]} 18.
Nfe5 {[%clk 0:01:49.8]} 18... Nxe5 {[%clk 0:01:45.5]} 19. Bxd5 {[%clk
0:01:49.8]} 19... exd5 {[%clk 0:01:34.6]} 20. Nxe5 {[%clk 0:01:50.5]} 20... Be6
{[%clk 0:01:32.8]} 21. Rd4 {[%clk 0:01:46.4]} 21... a5 {[%clk 0:01:27.1]} 22.
Re1 {[%clk 0:01:42.1]} 22... Rhc8 {[%clk 0:01:23.2]} 23. a3 {[%clk 0:01:39.7]}
23... Kf6 {[%clk 0:01:12.7]} 24. Rf4+ {[%clk 0:01:33.8]} 24... Kg7 {[%clk
0:01:09.3]} 25. Kd2 {[%clk 0:01:27.3]} 25... Rc7 {[%clk 0:01:02.3]} 26. Rd4
{[%clk 0:01:20.7]} 26... Rb8 {[%clk 0:00:55.4]} 27. Nd3 {[%clk 0:01:21]} 27...
Rc4 {[%clk 0:00:49.5]} 28. Nf4 {[%clk 0:01:04.3]} 28... Rxd4+ {[%clk 0:00:49.6]}
29. cxd4 {[%clk 0:01:06.2]} 29... Kf6 {[%clk 0:00:48.2]} 30. Rc1 {[%clk
0:01:04.8]} 30... b4 {[%clk 0:00:48.2]} 31. a4 {[%clk 0:01:00.2]} 31... b3
{[%clk 0:00:48.9]} 32. Nd3 {[%clk 0:00:44.6]} 32... Bf5 {[%clk 0:00:22.3]} 33.
Rc6+ {[%clk 0:00:42.7]} 33... Ke7 {[%clk 0:00:21.4]} 34. Rc5 {[%clk 0:00:38.3]}
34... Bxd3 {[%clk 0:00:20.1]} 35. Kxd3 {[%clk 0:00:40.2]} 35... Kd6 {[%clk
0:00:21.5]} 36. Rxa5 {[%clk 0:00:41.1]} 36... Rc8 {[%clk 0:00:22.5]} 37. Rc5
{[%clk 0:00:36.3]} 37... Re8 {[%clk 0:00:18.6]} 38. Rb5 {[%clk 0:00:33.8]} 38...
Re1 {[%clk 0:00:17.6]} 39. Rxb3 {[%clk 0:00:33.9]} 39... Ra1 {[%clk 0:00:16.5]}
40. Ra3 {[%clk 0:00:35]} 40... Rb1 {[%clk 0:00:17.7]} 41. b3 {[%clk 0:00:32.7]}
41... Kc6 {[%clk 0:00:18.6]} 42. a5 {[%clk 0:00:33.4]} 42... Kb7 {[%clk
0:00:19.5]} 43. a6+ {[%clk 0:00:35]} 43... Ka7 {[%clk 0:00:20.8]} 44. Ke3 {[%clk
0:00:34.8]} 44... f6 {[%clk 0:00:20.6]} 45. f3 {[%clk 0:00:34]} 45... Rb2 {[%clk
0:00:21.2]} 46. Kf4 {[%clk 0:00:33.7]} 46... Rb1 {[%clk 0:00:21.8]} 47. Ra5
{[%clk 0:00:34]} 47... Rxb3 {[%clk 0:00:21.8]} 48. Rxd5 {[%clk 0:00:35.5]} 48...
Rb6 {[%clk 0:00:22.5]} 49. Ra5 {[%clk 0:00:33.9]} 49... Rd6 {[%clk 0:00:22.4]}
50. d5 {[%clk 0:00:34.5]} 50... Rb6 {[%clk 0:00:22.4]} 51. Ra4 {[%clk
0:00:32.3]} 51... Rxa6 {[%clk 0:00:20.3]} 52. Rxa6+ {[%clk 0:00:32.5]} 52...
Kxa6 {[%clk 0:00:22.2]} 53. g4 {[%clk 0:00:33.7]} 53... Kb5 {[%clk 0:00:20.8]}
54. gxh5 {[%clk 0:00:34.1]} 1-0

[Event "*** Titled Tuesday Blitz"]
[Site "Chess.com"]
[Date "2019.12.03"]
[Round "1"]
[White "Man-Chuk"]
[Black "GelmanAlexander"]
[Result "1-0"]
[WhiteElo "2926"]
[BlackElo "2498"]
[TimeControl "180+2"]
[EndTime "13:09:30 PST"]
[Termination "Man-Chuk won by resignation"]

1. d4 {[%clk 0:02:57.4]} 1... Nf6 {[%clk 0:02:58.8]} 2. c4 {[%clk 0:02:56.9]}
2... c5 {[%clk 0:02:57.6]} 3. Nf3 {[%clk 0:02:56.5]} 3... cxd4 {[%clk
0:02:50.7]} 4. Nxd4 {[%clk 0:02:57.2]} 4... b6 {[%clk 0:02:52.1]} 5. Nc3 {[%clk
0:02:57.5]} 5... Bb7 {[%clk 0:02:53.1]} 6. f3 {[%clk 0:02:59]} 6... d6 {[%clk
0:02:54.1]} 7. e4 {[%clk 0:02:59.7]} 7... a6 {[%clk 0:02:55.4]} 8. Be3 {[%clk
0:03:01]} 8... e6 {[%clk 0:02:56.5]} 9. Be2 {[%clk 0:03:02.4]} 9... Nbd7 {[%clk
0:02:58]} 10. O-O {[%clk 0:03:03.7]} 10... Rc8 {[%clk 0:02:59.2]} 11. Rc1 {[%clk
0:03:04.9]} 11... Rg8 {[%clk 0:02:59.3]} 12. b3 {[%clk 0:02:49.7]} 12... g5
{[%clk 0:02:59.3]} 13. Bd3 {[%clk 0:02:41.9]} 13... Be7 {[%clk 0:02:43.9]} 14.
Qe2 {[%clk 0:02:28.8]} 14... Qc7 {[%clk 0:02:36.9]} 15. Bf2 {[%clk 0:02:28.6]}
15... Ne5 {[%clk 0:02:33]} 16. Bb1 {[%clk 0:02:23.7]} 16... Nh5 {[%clk
0:02:22.3]} 17. g3 {[%clk 0:02:21.6]} 17... Nf6 {[%clk 0:02:05.7]} 18. Be3
{[%clk 0:02:11.7]} 18... h6 {[%clk 0:02:05.1]} 19. Kh1 {[%clk 0:01:32.3]} 19...
Qb8 {[%clk 0:01:57.5]} 20. h3 {[%clk 0:01:18.5]} 20... h5 {[%clk 0:01:55.1]} 21.
f4 {[%clk 0:01:19.4]} 21... gxf4 {[%clk 0:01:29]} 22. gxf4 {[%clk 0:01:20.3]}
22... Qa8 {[%clk 0:01:10.2]} 23. fxe5 {[%clk 0:01:10.8]} 23... dxe5 {[%clk
0:01:02.2]} 24. Nf3 {[%clk 0:01:06.3]} 24... Nxe4 {[%clk 0:00:54.3]} 25. Nxe4
{[%clk 0:01:05.6]} 25... Bxe4 {[%clk 0:00:55.2]} 26. Bxe4 {[%clk 0:01:05.4]}
26... Qxe4 {[%clk 0:00:55.7]} 27. Qf2 {[%clk 0:01:05.2]} 27... b5 {[%clk
0:00:38.6]} 28. c5 {[%clk 0:00:59.2]} 28... f5 {[%clk 0:00:35.1]} 29. Rg1 {[%clk
0:00:36.4]} 29... Kf7 {[%clk 0:00:28.4]} 30. Rxg8 {[%clk 0:00:23.8]} 30... Rxg8
{[%clk 0:00:30.3]} 31. Rg1 {[%clk 0:00:25.1]} 31... Rxg1+ {[%clk 0:00:20.3]} 32.
Kxg1 {[%clk 0:00:27]} 32... f4 {[%clk 0:00:19.2]} 33. Bd2 {[%clk 0:00:28.3]}
33... Qd5 {[%clk 0:00:17.5]} 34. b4 {[%clk 0:00:17.9]} 34... Ke8 {[%clk
0:00:18.5]} 35. Bc3 {[%clk 0:00:11]} 35... e4 {[%clk 0:00:19.3]} 36. Nd4 {[%clk
0:00:12.1]} 36... Qg5+ {[%clk 0:00:14]} 37. Qg2 {[%clk 0:00:12.4]} 37... Qd5
{[%clk 0:00:11.1]} 38. Qg8+ {[%clk 0:00:13.6]} 38... Kd7 {[%clk 0:00:12.6]} 39.
c6+ {[%clk 0:00:14.9]} 39... Kc7 {[%clk 0:00:14.2]} 40. Qxe6 {[%clk 0:00:11.3]}
40... Qxe6 {[%clk 0:00:14]} 41. Nxe6+ {[%clk 0:00:13.2]} 41... Kxc6 {[%clk
0:00:15.9]} 42. Nxf4 {[%clk 0:00:14.5]} 42... Bd6 {[%clk 0:00:15.1]} 43. Bd2
{[%clk 0:00:08.2]} 43... Bxf4 {[%clk 0:00:13]} 44. Bxf4 {[%clk 0:00:09.1]} 44...
Kd5 {[%clk 0:00:14.9]} 45. Kf2 {[%clk 0:00:09.6]} 45... Kc4 {[%clk 0:00:16.4]}
46. Bd6 {[%clk 0:00:10.7]} 46... Kd3 {[%clk 0:00:16.8]} 47. Bc5 {[%clk
0:00:12.2]} 47... Kc2 {[%clk 0:00:13.1]} 48. Ke3 {[%clk 0:00:13.1]} 48... Kb2
{[%clk 0:00:14.6]} 49. Bb6 {[%clk 0:00:13]} 49... Kxa2 {[%clk 0:00:15.4]} 50.
Ba5 {[%clk 0:00:14.3]} 50... Kb3 {[%clk 0:00:16.4]} 51. Kxe4 {[%clk 0:00:15.8]}
51... Kc4 {[%clk 0:00:17.9]} 52. Kf5 {[%clk 0:00:17.2]} 52... Kd5 {[%clk
0:00:19.4]} 53. Kg5 {[%clk 0:00:18.8]} 53... Ke5 {[%clk 0:00:20.8]} 54. Kxh5
{[%clk 0:00:20.4]} 54... Kf5 {[%clk 0:00:22.4]} 55. h4 {[%clk 0:00:21.8]} 1-0

[Event "*** Titled Tuesday Blitz"]
[Site "Chess.com"]
[Date "2019.12.03"]
[Round "1"]
[White "Saitama_Hero"]
[Black "Kostya_Nikologorskiy"]
[Result "1-0"]
[WhiteElo "2332"]
[BlackElo "2643"]
[TimeControl "180+2"]
[EndTime "13:09:32 PST"]
[Termination "Saitama_Hero won by resignation"]

1. d4 {[%clk 0:03:01.2]} 1... Nf6 {[%clk 0:03:00.5]} 2. c4 {[%clk 0:03:01]} 2...
e6 {[%clk 0:03:00]} 3. Nc3 {[%clk 0:03:02.3]} 3... Bb4 {[%clk 0:02:59.8]} 4. f3
{[%clk 0:03:03.8]} 4... d5 {[%clk 0:03:00]} 5. a3 {[%clk 0:03:05.2]} 5... Bxc3+
{[%clk 0:03:00.6]} 6. bxc3 {[%clk 0:03:07.1]} 6... O-O {[%clk 0:03:01.4]} 7.
cxd5 {[%clk 0:03:08.3]} 7... exd5 {[%clk 0:03:01.5]} 8. e3 {[%clk 0:03:09.9]}
8... Bf5 {[%clk 0:02:59.8]} 9. g4 {[%clk 0:03:06.1]} 9... Bg6 {[%clk 0:03:00.1]}
10. Bg2 {[%clk 0:03:06]} 10... c5 {[%clk 0:02:56.7]} 11. Ne2 {[%clk 0:03:07.1]}
11... Nc6 {[%clk 0:02:55.1]} 12. O-O {[%clk 0:03:06]} 12... Re8 {[%clk
0:02:54.1]} 13. Nf4 {[%clk 0:02:55.5]} 13... Rc8 {[%clk 0:02:50.4]} 14. h4
{[%clk 0:02:43.4]} 14... cxd4 {[%clk 0:02:38.6]} 15. cxd4 {[%clk 0:02:36.4]}
15... Na5 {[%clk 0:02:33.8]} 16. Rf2 {[%clk 0:02:31.1]} 16... Qc7 {[%clk
0:02:12.2]} 17. g5 {[%clk 0:02:16.9]} 17... Bc2 {[%clk 0:01:57.9]} 18. Qf1
{[%clk 0:01:24]} 18... Nd7 {[%clk 0:01:36.9]} 19. Nxd5 {[%clk 0:01:23.1]} 19...
Qd6 {[%clk 0:01:23.5]} 20. e4 {[%clk 0:01:20.6]} 20... Nb3 {[%clk 0:01:20.3]}
21. Bf4 {[%clk 0:01:21.7]} 21... Qg6 {[%clk 0:01:07.9]} 22. Bh3 {[%clk
0:01:05.4]} 22... Bxe4 {[%clk 0:00:48.3]} 23. fxe4 {[%clk 0:00:59.7]} 23... Qxe4
{[%clk 0:00:50.2]} 24. Bg2 {[%clk 0:00:46]} 24... Qxd4 {[%clk 0:00:45.5]} 25.
Rd1 {[%clk 0:00:46.5]} 25... Qc5 {[%clk 0:00:43.5]} 26. Bh3 {[%clk 0:00:37]}
26... Rcd8 {[%clk 0:00:32.1]} 27. Qd3 {[%clk 0:00:36.2]} 27... Nb6 {[%clk
0:00:21.5]} 28. Nf6+ {[%clk 0:00:26.8]} 28... gxf6 {[%clk 0:00:23.4]} 29. Qxd8
{[%clk 0:00:25.6]} 29... Rxd8 {[%clk 0:00:24.7]} 30. Rxd8+ {[%clk 0:00:25.1]}
30... Kg7 {[%clk 0:00:26.1]} 31. gxf6+ {[%clk 0:00:21.4]} 31... Kg6 {[%clk
0:00:26.8]} 32. Rg8+ {[%clk 0:00:21.1]} 32... Kh5 {[%clk 0:00:25.9]} 33. Bg4+
{[%clk 0:00:16.8]} 33... Kxh4 {[%clk 0:00:27]} 34. Kf1 {[%clk 0:00:07.6]} 34...
Qc4+ {[%clk 0:00:21.5]} 35. Be2 {[%clk 0:00:08]} 35... Nd2+ {[%clk 0:00:12.7]}
36. Bxd2 {[%clk 0:00:03.7]} 36... Qe6 {[%clk 0:00:12.3]} 37. Rh2+ {[%clk
0:00:03.8]} 37... Qh3+ {[%clk 0:00:13.9]} 38. Rxh3+ {[%clk 0:00:05.2]} 38...
Kxh3 {[%clk 0:00:15.8]} 39. Bf4 {[%clk 0:00:05.9]} 39... Nd5 {[%clk 0:00:17.2]}
40. Bg4+ {[%clk 0:00:06]} 40... Kh4 {[%clk 0:00:18.6]} 41. Be5 {[%clk
0:00:06.5]} 41... h5 {[%clk 0:00:19.5]} 42. Bf3 {[%clk 0:00:07.5]} 42... Ne3+
{[%clk 0:00:20.4]} 43. Ke2 {[%clk 0:00:06.4]} 43... Nf5 {[%clk 0:00:22.3]} 44.
Kf2 {[%clk 0:00:07.4]} 44... b5 {[%clk 0:00:21.4]} 45. Rg1 {[%clk 0:00:05.2]}
45... Nh6 {[%clk 0:00:19.4]} 46. Bf4 {[%clk 0:00:05.4]} 46... Ng4+ {[%clk
0:00:20.5]} 47. Bxg4 {[%clk 0:00:06.1]} 47... b4 {[%clk 0:00:21.9]} 48. Kf3
{[%clk 0:00:06.6]} 48... hxg4+ {[%clk 0:00:21.7]} 49. Rxg4+ {[%clk 0:00:08.1]}
49... Kh5 {[%clk 0:00:23.6]} 50. Kg3 {[%clk 0:00:05.8]} 50... bxa3 {[%clk
0:00:23.8]} 51. Rg5+ {[%clk 0:00:07.2]} 51... Kh6 {[%clk 0:00:25.2]} 52. Ra5+
{[%clk 0:00:07.5]} 52... Kg6 {[%clk 0:00:26.5]} 53. Ra6 {[%clk 0:00:08.6]} 53...
Kf5 {[%clk 0:00:27.6]} 54. Bd2 {[%clk 0:00:08.8]} 54... Ke5 {[%clk 0:00:28.5]}
55. Bc3+ {[%clk 0:00:09.9]} 55... Ke4 {[%clk 0:00:29.9]} 56. Rxa3 {[%clk
0:00:09.3]} 1-0

[Event "*** Titled Tuesday Blitz"]
[Site "Chess.com"]
[Date "2019.12.03"]
[Round "1"]
[White "Sjakkerntobi"]
[Black "AliKa2810"]
[Result "0-1"]
[WhiteElo "2136"]
[BlackElo "2569"]
[TimeControl "180+2"]
[EndTime "13:09:39 PST"]
[Termination "AliKa2810 won by resignation"]

1. e4 {[%clk 0:03:01.9]} 1... e6 {[%clk 0:03:00.6]} 2. d4 {[%clk 0:03:02.4]}
2... d5 {[%clk 0:03:01.8]} 3. Nd2 {[%clk 0:03:04]} 3... c5 {[%clk 0:03:02]} 4.
Ngf3 {[%clk 0:03:04.1]} 4... Nc6 {[%clk 0:03:01.7]} 5. exd5 {[%clk 0:03:02.8]}
5... exd5 {[%clk 0:03:02.9]} 6. Bb5 {[%clk 0:02:59.5]} 6... Qe7+ {[%clk
0:03:04.2]} 7. Qe2 {[%clk 0:02:56.2]} 7... Qxe2+ {[%clk 0:03:04.7]} 8. Bxe2
{[%clk 0:02:57]} 8... Bf5 {[%clk 0:02:58.8]} 9. c3 {[%clk 0:02:48.6]} 9... cxd4
{[%clk 0:02:59.4]} 10. Nxd4 {[%clk 0:02:50.5]} 10... Nxd4 {[%clk 0:02:59.6]} 11.
cxd4 {[%clk 0:02:52.4]} 11... Ne7 {[%clk 0:02:50]} 12. O-O {[%clk 0:02:37]}
12... Nc6 {[%clk 0:02:49.5]} 13. Nb3 {[%clk 0:02:35.8]} 13... Bd6 {[%clk
0:02:46.9]} 14. Bf3 {[%clk 0:02:30.8]} 14... O-O-O {[%clk 0:02:39.9]} 15. Bg5
{[%clk 0:02:20.3]} 15... f6 {[%clk 0:02:39.4]} 16. Bh4 {[%clk 0:02:20.9]} 16...
Rhe8 {[%clk 0:02:07.4]} 17. Rfe1 {[%clk 0:02:13.3]} 17... g5 {[%clk 0:01:45.4]}
18. Bg3 {[%clk 0:02:12.6]} 18... Bxg3 {[%clk 0:01:46.8]} 19. hxg3 {[%clk
0:02:14.5]} 19... Rxe1+ {[%clk 0:01:36.8]} 20. Rxe1 {[%clk 0:02:15.3]} 20... Kc7
{[%clk 0:01:31.6]} 21. Rc1 {[%clk 0:01:19.5]} 21... b6 {[%clk 0:01:24.6]} 22.
Nd2 {[%clk 0:01:15.5]} 22... Kd6 {[%clk 0:01:23.5]} 23. Nb3 {[%clk 0:01:06.6]}
23... a5 {[%clk 0:01:23.1]} 24. a4 {[%clk 0:01:04.5]} 24... Re8 {[%clk
0:01:13.5]} 25. g4 {[%clk 0:00:53.8]} 25... Bd3 {[%clk 0:01:10.8]} 26. Rc3
{[%clk 0:00:41.8]} 26... Bc4 {[%clk 0:00:55.7]} 27. Nd2 {[%clk 0:00:41.6]} 27...
Nxd4 {[%clk 0:00:52.9]} 28. Nxc4+ {[%clk 0:00:41.4]} 28... dxc4 {[%clk
0:00:53.7]} 29. Rxc4 {[%clk 0:00:41.2]} 29... Re1+ {[%clk 0:00:54.6]} 30. Kh2
{[%clk 0:00:41.7]} 30... Nxf3+ {[%clk 0:00:55.6]} 31. gxf3 {[%clk 0:00:43.6]}
31... Re2 {[%clk 0:00:56.8]} 32. b4 {[%clk 0:00:43.9]} 32... Rxf2+ {[%clk
0:00:54.5]} 33. Kg3 {[%clk 0:00:45.5]} 33... Rb2 {[%clk 0:00:49.2]} 34. bxa5
{[%clk 0:00:43.5]} 34... bxa5 {[%clk 0:00:49.8]} 35. Rd4+ {[%clk 0:00:40.7]}
35... Kc5 {[%clk 0:00:27.5]} 36. Rd7 {[%clk 0:00:39.5]} 36... Ra2 {[%clk
0:00:25.1]} 37. Rxh7 {[%clk 0:00:40.4]} 37... Rxa4 {[%clk 0:00:26.3]} 38. Rf7
{[%clk 0:00:42.3]} 38... Rf4 {[%clk 0:00:26]} 39. Kf2 {[%clk 0:00:42.8]} 39...
a4 {[%clk 0:00:27.1]} 40. Ke3 {[%clk 0:00:43.5]} 40... Kb6 {[%clk 0:00:27.3]}
41. Rf8 {[%clk 0:00:42.5]} 41... Kc5 {[%clk 0:00:21.9]} 42. Rc8+ {[%clk
0:00:43.2]} 42... Kb4 {[%clk 0:00:23]} 43. Rb8+ {[%clk 0:00:44.2]} 43... Kc3
{[%clk 0:00:22.9]} 44. Rc8+ {[%clk 0:00:44.5]} 44... Kb3 {[%clk 0:00:23.5]} 45.
Rb8+ {[%clk 0:00:46.4]} 45... Ka2 {[%clk 0:00:21.9]} 46. Rb7 {[%clk 0:00:47.7]}
46... a3 {[%clk 0:00:22.2]} 47. Rb6 {[%clk 0:00:48.7]} 47... Ka1 {[%clk
0:00:23]} 48. Rb7 {[%clk 0:00:47.1]} 48... a2 {[%clk 0:00:18.3]} 49. Rb6 {[%clk
0:00:48.2]} 49... Rc4 {[%clk 0:00:18]} 50. Rxf6 {[%clk 0:00:48.8]} 50... Rb4
{[%clk 0:00:18.8]} 51. Rd6 {[%clk 0:00:42.9]} 51... Kb2 {[%clk 0:00:19.8]} 52.
Rd2+ {[%clk 0:00:43.8]} 52... Kb3 {[%clk 0:00:17.5]} 53. Rd1 {[%clk 0:00:42.1]}
53... Ra4 {[%clk 0:00:17.6]} 54. Rd3+ {[%clk 0:00:42.4]} 54... Kc2 {[%clk
0:00:15.8]} 55. Rd2+ {[%clk 0:00:43.2]} 55... Kc1 {[%clk 0:00:17.1]} 56. Rxa2
{[%clk 0:00:44.3]} 56... Rxa2 {[%clk 0:00:17.6]} 57. f4 {[%clk 0:00:46.2]} 57...
Ra3+ {[%clk 0:00:18.1]} 58. Ke4 {[%clk 0:00:47.5]} 58... Ra4+ {[%clk 0:00:19.4]}
59. Kf5 {[%clk 0:00:49.4]} 59... gxf4 {[%clk 0:00:20.5]} 60. g5 {[%clk
0:00:50.8]} 60... f3 {[%clk 0:00:21.9]} 61. g6 {[%clk 0:00:52.7]} 61... f2
{[%clk 0:00:23.3]} 62. g7 {[%clk 0:00:54.6]} 62... f1=Q+ {[%clk 0:00:24.2]} 63.
Kg6 {[%clk 0:00:56.5]} 63... Rg4+ {[%clk 0:00:24.7]} 64. Kh7 {[%clk 0:00:57.7]}
64... Qh3+ {[%clk 0:00:23.8]} 65. Kg8 {[%clk 0:00:59]} 65... Rxg7+ {[%clk
0:00:24.9]} 66. Kxg7 {[%clk 0:01:00.3]} 66... Qe6 {[%clk 0:00:25.6]} 67. Kh8
{[%clk 0:01:02.2]} 67... Qe7 {[%clk 0:00:26.3]} 68. Kg8 {[%clk 0:01:04.1]} 68...
Kd2 {[%clk 0:00:27.6]} 69. Kh8 {[%clk 0:01:06]} 69... Ke3 {[%clk 0:00:29.1]} 70.
Kg8 {[%clk 0:01:07.9]} 70... Kf4 {[%clk 0:00:30.6]} 71. Kh8 {[%clk 0:01:09.8]}
71... Kg5 {[%clk 0:00:32]} 0-1

[Event "*** Titled Tuesday Blitz"]
[Site "Chess.com"]
[Date "2019.12.03"]
[Round "1"]
[White "PavelChernomordik"]
[Black "DangerousPlayer1st"]
[Result "1/2-1/2"]
[WhiteElo "2431"]
[BlackElo "2777"]
[TimeControl "180+2"]
[EndTime "13:10:02 PST"]
[Termination "Game drawn - insufficient material"]

1. e4 {[%clk 0:03:00.5]} 1... Nf6 {[%clk 0:03:00.2]} 2. Nc3 {[%clk 0:02:59.9]}
2... d5 {[%clk 0:03:01.2]} 3. e5 {[%clk 0:03:00.2]} 3... Nfd7 {[%clk 0:03:02.2]}
4. f4 {[%clk 0:03:00.4]} 4... e6 {[%clk 0:03:03.4]} 5. Nf3 {[%clk 0:03:00.4]}
5... c5 {[%clk 0:03:04.9]} 6. g3 {[%clk 0:03:00.6]} 6... Nc6 {[%clk 0:03:06.5]}
7. Bg2 {[%clk 0:02:59.8]} 7... Be7 {[%clk 0:03:08]} 8. O-O {[%clk 0:02:57.1]}
8... O-O {[%clk 0:03:09.5]} 9. Qe2 {[%clk 0:02:56.8]} 9... a6 {[%clk 0:03:10.7]}
10. d3 {[%clk 0:02:56.6]} 10... b5 {[%clk 0:03:11.8]} 11. Bd2 {[%clk 0:02:54.7]}
11... Bb7 {[%clk 0:03:13]} 12. Nd1 {[%clk 0:02:45.9]} 12... Rc8 {[%clk
0:03:13.9]} 13. c3 {[%clk 0:02:45.8]} 13... b4 {[%clk 0:03:08.1]} 14. c4 {[%clk
0:02:43.8]} 14... dxc4 {[%clk 0:03:02.7]} 15. dxc4 {[%clk 0:02:43.2]} 15... Nb6
{[%clk 0:03:04.6]} 16. Nf2 {[%clk 0:02:36.3]} 16... a5 {[%clk 0:03:01.2]} 17.
Be3 {[%clk 0:02:31.9]} 17... a4 {[%clk 0:02:59.3]} 18. Rad1 {[%clk 0:02:28.2]}
18... Qc7 {[%clk 0:03:00.1]} 19. Ne4 {[%clk 0:02:25.9]} 19... Ba6 {[%clk
0:02:59]} 20. b3 {[%clk 0:02:25.7]} 20... Na5 {[%clk 0:02:56.2]} 21. Qc2 {[%clk
0:02:13.1]} 21... Rfd8 {[%clk 0:02:15.2]} 22. Bh3 {[%clk 0:02:05.9]} 22... g6
{[%clk 0:02:09.5]} 23. g4 {[%clk 0:01:58.9]} 23... Qc6 {[%clk 0:01:38.3]} 24.
Nf6+ {[%clk 0:01:50.7]} 24... Bxf6 {[%clk 0:01:35.1]} 25. exf6 {[%clk
0:01:50.3]} 25... Naxc4 {[%clk 0:01:29.5]} 26. bxc4 {[%clk 0:01:48.8]} 26...
Nxc4 {[%clk 0:01:31.4]} 27. Bc1 {[%clk 0:01:42.7]} 27... Qb5 {[%clk 0:00:38.2]}
28. Rxd8+ {[%clk 0:01:31.4]} 28... Rxd8 {[%clk 0:00:40.1]} 29. Rd1 {[%clk
0:01:32]} 29... Rd5 {[%clk 0:00:32.4]} 30. Rxd5 {[%clk 0:01:18.3]} 30... exd5
{[%clk 0:00:34.3]} 31. Qe2 {[%clk 0:01:17.1]} 31... Qd7 {[%clk 0:00:30.1]} 32.
g5 {[%clk 0:01:13.9]} 32... Qd8 {[%clk 0:00:31.3]} 33. Qe7 {[%clk 0:01:12.2]}
33... Qxe7 {[%clk 0:00:32.6]} 34. fxe7 {[%clk 0:01:12.4]} 34... Bb5 {[%clk
0:00:34.5]} 35. Ne5 {[%clk 0:01:05.3]} 35... Nd6 {[%clk 0:00:35.5]} 36. Bd7
{[%clk 0:01:02.2]} 36... Bxd7 {[%clk 0:00:31.7]} 37. Nxd7 {[%clk 0:01:01.4]}
37... f5 {[%clk 0:00:32.6]} 38. Nxc5 {[%clk 0:00:55.6]} 38... Kf7 {[%clk
0:00:33.9]} 39. Nxa4 {[%clk 0:00:55.3]} 39... Ne4 {[%clk 0:00:33.6]} 40. Nb6
{[%clk 0:00:52.4]} 40... Nc3 {[%clk 0:00:32.6]} 41. a3 {[%clk 0:00:46.4]} 41...
Ne2+ {[%clk 0:00:32]} 42. Kf2 {[%clk 0:00:44.9]} 42... Nxc1 {[%clk 0:00:33.9]}
43. axb4 {[%clk 0:00:45.7]} 43... Nd3+ {[%clk 0:00:33.4]} 44. Ke3 {[%clk
0:00:46.6]} 44... Nxb4 {[%clk 0:00:35.3]} 45. Kd4 {[%clk 0:00:45.8]} 45... Kxe7
{[%clk 0:00:36]} 46. Nxd5+ {[%clk 0:00:39]} 46... Nxd5 {[%clk 0:00:35]} 47. Kxd5
{[%clk 0:00:39.9]} 47... Kd7 {[%clk 0:00:36.5]} 48. Ke5 {[%clk 0:00:39.6]} 48...
Ke7 {[%clk 0:00:36.4]} 49. h3 {[%clk 0:00:40.4]} 49... Kf7 {[%clk 0:00:33.3]}
50. Kd6 {[%clk 0:00:40.9]} 50... Kf8 {[%clk 0:00:34.6]} 51. Ke6 {[%clk
0:00:41.3]} 51... Kg7 {[%clk 0:00:34.1]} 52. Ke7 {[%clk 0:00:41.8]} 52... Kg8
{[%clk 0:00:35.7]} 53. Ke8 {[%clk 0:00:38]} 53... Kg7 {[%clk 0:00:37]} 54. Ke7
{[%clk 0:00:38.7]} 54... Kg8 {[%clk 0:00:36.4]} 55. Kf6 {[%clk 0:00:37]} 55...
Kf8 {[%clk 0:00:35.9]} 56. h4 {[%clk 0:00:38.5]} 56... Kg8 {[%clk 0:00:35.2]}
57. h5 {[%clk 0:00:39.2]} 57... gxh5 {[%clk 0:00:32.7]} 58. Kxf5 {[%clk
0:00:40]} 58... Kf7 {[%clk 0:00:33.8]} 59. Ke4 {[%clk 0:00:36.5]} 59... Kg6
{[%clk 0:00:33.4]} 60. Kf3 {[%clk 0:00:37.8]} 60... Kf5 {[%clk 0:00:33.2]} 61.
Kg3 {[%clk 0:00:39]} 61... Ke4 {[%clk 0:00:32.9]} 62. Kh4 {[%clk 0:00:37.2]}
62... Kxf4 {[%clk 0:00:34.5]} 63. Kxh5 {[%clk 0:00:37.9]} 63... Kf5 {[%clk
0:00:34.6]} 64. Kh6 {[%clk 0:00:38.8]} 64... Kg4 {[%clk 0:00:34.2]} 65. Kxh7
{[%clk 0:00:39.7]} 65... Kxg5 {[%clk 0:00:35.3]} 1/2-1/2